bitfinex-derivatives/quotes_BTCF0:USTF0_20240820
["timestamp","ask_amount","ask_price","bid_price","bid_amount"]
[1724183802728,0.235962,59543.0,59542.0,0.05018691]
[1724183803032,0.235962,59543.0,59542.0,0.00025171]
[1724183804939,0.235962,59543.0,59542.0,0.05016812]
[1724183806027,0.31996885,59543.0,59542.0,0.05016812]
[1724183806622,0.31996885,59543.0,59538.0,0.08394]
[1724183806623,1.29108485,59543.0,59538.0,0.08394]
[1724183806828,0.3608,59539.0,59537.0,0.13386404]
[1724183807027,0.49828285,59538.0,59537.0,0.08394]
[1724183807224,0.64828285,59538.0,59537.0,0.08394]
[1724183807526,0.64828285,59538.0,59528.0,0.3608]
[1724183807527,0.167944,59536.0,59535.0,0.13386404]
[1724183807727,0.083974,59534.0,59530.0,0.15065561]
[1724183808028,0.083979,59531.0,59530.0,0.15065561]
[1724183808226,0.253979,59531.0,59530.0,0.15065561]
[1724183808427,0.253979,59531.0,59530.0,0.08414757]
[1724183809236,0.25402385,59531.0,59530.0,0.08414757]
[1724183809626,0.25502385,59531.0,59530.0,0.08414757]
[1724183809829,0.25502385,59531.0,59530.0,0.00016857]
[1724183810524,0.25602385,59531.0,59530.0,0.00016857]
[1724183811831,0.25602385,59531.0,59530.0,0.08414857]
[1724183812027,0.40728485,59531.0,59530.0,0.08414857]
[1724183812339,0.17204485,59531.0,59530.0,0.08414857]
[1724183814336,0.25602385,59531.0,59530.0,0.08414857]
[1724183814536,0.34000285,59531.0,59530.0,0.00016857]
[1724183814843,0.25602385,59531.0,59530.0,0.05005688]
[1724183815229,0.38690285,59531.0,59530.0,0.05005688]
[1724183815431,0.30292385,59531.0,59530.0,0.00016857]
[1724183816325,0.30292385,59531.0,59530.0,0.13403688]
[1724183816639,0.30292385,59531.0,59530.0,0.08414857]
[1724183817132,0.17204485,59531.0,59530.0,0.08414857]
[1724183817530,0.17204485,59531.0,59530.0,0.15065661]
[1724183817931,0.17204485,59531.0,59530.0,0.08414857]
[1724183818745,0.17204485,59531.0,59530.0,0.16808857]
[1724183819439,0.17204485,59531.0,59530.0,0.25206857]
[1724183819739,0.17204485,59531.0,59530.0,1.32312009]
[1724183819928,0.17204485,59531.0,59530.0,1.36796624]
[1724183820241,0.17204485,59531.0,59530.0,0.96796624]
[1724183822043,0.083969,59538.0,59537.0,0.08397]
[1724183822235,0.233969,59538.0,59537.0,0.08397]
[1724183823240,0.235969,59538.0,59537.0,0.16721759]
[1724183823439,0.235969,59538.0,59537.0,0.21127861]
[1724183823640,0.083972,59536.0,59535.0,0.06666189]
[1724183823945,0.083972,59536.0,59532.0,0.08394]
[1724183823946,0.083974,59534.0,59533.0,0.06666189]
[1724183824138,0.243974,59534.0,59533.0,0.06666189]
[1724183824950,0.083979,59531.0,59530.0,0.00016857]
[1724183825242,0.327958,59531.0,59530.0,0.00016857]
[1724183825734,0.325958,59531.0,59530.0,0.00016857]
[1724183826539,0.242979,59531.0,59530.0,0.00116857]
[1724183826839,0.242979,59531.0,59530.0,0.00216857]
[1724183826840,0.243979,59531.0,59530.0,0.00216857]
[1724183827044,0.25361366,59531.0,59530.0,0.00216857]
[1724183828138,0.25361366,59531.0,59530.0,0.05219859]
[1724183828439,0.25361366,59531.0,59530.0,0.08614857]
[1724183828837,0.25361366,59531.0,59530.0,0.08514857]
[1724183829555,0.25361366,59531.0,59530.0,0.00116857]
[1724183830646,0.25361366,59531.0,59530.0,0.06783046]
[1724183832045,0.33759266,59531.0,59530.0,0.00116857]
[1724183832236,0.33759266,59531.0,59530.0,0.06790361]
[1724183832950,0.33759266,59531.0,59530.0,0.00116857]
[1724183833736,0.34809662,59531.0,59530.0,0.00116857]
[1724183835854,0.17163466,59531.0,59530.0,0.08514857]
[1724183836151,0.12962203,59531.0,59530.0,0.16847221]
[1724183836344,0.12962203,59531.0,59530.0,0.21311735]
[1724183836745,0.21360103,59531.0,59530.0,0.16855953]
[1724183836947,0.21360103,59531.0,59530.0,0.08514857]
[1724183838159,0.21360103,59531.0,59530.0,0.08547857]
[1724183838950,0.21360103,59531.0,59530.0,0.15221838]
[1724183838951,0.22410462,59531.0,59530.0,0.15221838]
[1724183839557,0.22410462,59531.0,59530.0,0.08547857]
[1724183841149,0.30808362,59531.0,59530.0,0.00149857]
[1724183844156,0.29758003,59531.0,59530.0,0.00149857]
[1724183844457,0.30808386,59531.0,59530.0,0.00149857]
[1724183844855,0.31790486,59531.0,59530.0,0.00149857]
[1724183845852,0.22410486,59531.0,59530.0,0.08547857]
[1724183846056,0.14012586,59531.0,59530.0,0.08547857]
[1724183846259,0.14012586,59531.0,59530.0,0.57425112]
[1724183848056,0.00985924,59536.0,59533.0,0.083976]
[1724183848248,0.16,59536.0,59535.0,0.08339463]
[1724183848448,0.16,59536.0,59535.0,0.12795954]
[1724183849351,0.162,59536.0,59535.0,0.29531923]
[1724183849957,0.162,59536.0,59535.0,0.16735969]
[1724183850159,0.162,59536.0,59535.0,0.29531857]
[1724183850350,0.162,59536.0,59535.0,0.29531886]
[1724183850555,0.162,59536.0,59535.0,0.083973]
[1724183850750,0.245972,59536.0,59535.0,0.083973]
[1724183851550,0.245972,59536.0,59535.0,0.29531965]
[1724183851751,0.162,59536.0,59535.0,0.29531965]
[1724183852163,0.162,59536.0,59535.0,0.21193296]
[1724183853867,0.245972,59536.0,59535.0,0.21193296]
[1724183854158,0.245972,59536.0,59535.0,0.08339773]
[1724183854368,0.245972,59536.0,59534.0,0.08339773]
[1724183854369,0.083973,59535.0,59534.0,0.08339773]
[1724183854665,0.083973,59535.0,59530.0,0.46090583]
[1724183854666,0.14,59535.0,59532.0,0.08339773]
[1724183854859,0.167954,59532.0,59531.0,0.06674493]
[1724183855161,0.167954,59532.0,59530.0,0.0672435]
[1724183855162,0.167958,59531.0,59530.0,0.0672435]
[1724183855464,0.367158,59531.0,59530.0,0.0672435]
[1724183855663,0.871118,59531.0,59530.0,0.00049857]
[1724183856063,0.88162228,59531.0,59530.0,0.00049857]
[1724183856551,0.37766228,59531.0,59530.0,0.00049857]
[1724183856756,0.38731711,59531.0,59530.0,0.00049857]
[1724183857768,0.38831711,59531.0,59530.0,0.00049857]
[1724183858464,0.77637786,59531.0,59530.0,0.00049857]
[1724183858767,0.083988,59525.0,59524.0,0.06674493]
[1724183858956,0.64155552,59525.0,59524.0,0.06674493]
[1724183859161,0.64155552,59525.0,59520.0,0.0466]
[1724183859162,0.083993,59521.0,59520.0,0.0466]
[1724183859361,0.25449728,59521.0,59520.0,0.0466]
[1724183859562,0.25449819,59521.0,59520.0,0.0466]
[1724183860865,0.25449819,59521.0,59520.0,0.11332861]
[1724183861167,0.25549819,59521.0,59520.0,0.11332861]
[1724183861557,0.25649819,59521.0,59520.0,0.11332861]
[1724183862165,0.25649819,59521.0,59520.0,0.0466]
[1724183862671,0.26605912,59521.0,59520.0,0.0466]
[1724183862971,0.26605912,59521.0,59520.0,0.11332861]
[1724183863165,0.26605912,59521.0,59520.0,0.0466]
[1724183863359,0.25555393,59521.0,59520.0,0.0466]
[1724183863563,0.26605902,59521.0,59520.0,0.0466]
[1724183864565,0.26605902,59521.0,59520.0,0.130595]
[1724183866576,0.26605902,59521.0,59520.0,0.19732361]
[1724183866577,0.25555393,59521.0,59520.0,0.19732361]
[1724183867074,0.25555393,59521.0,59520.0,0.130595]
[1724183867270,0.25555393,59521.0,59520.0,0.19727023]
[1724183867461,0.25555393,59521.0,59520.0,0.130595]
[1724183868766,0.25555393,59521.0,59520.0,0.34197996]
[1724183869571,0.25555393,59521.0,59520.0,0.29537996]
[1724183869770,0.2660586,59521.0,59520.0,0.083995]
[1724183870069,0.2660586,59521.0,59518.0,0.3608]
[1724183870070,0.083996,59519.0,59518.0,0.3608]
[1724183870270,0.243996,59519.0,59518.0,0.3608]
[1724183870675,0.25450124,59519.0,59518.0,0.3608]
[1724183871277,0.25550124,59519.0,59518.0,0.3608]
[1724183871477,0.244996,59519.0,59518.0,0.3608]
[1724183871674,0.25650124,59519.0,59518.0,0.3608]
[1724183871875,0.245996,59519.0,59518.0,0.3608]
[1724183872181,0.25650124,59519.0,59518.0,0.3608]
[1724183872479,0.25650124,59519.0,59516.0,0.084]
[1724183872480,0.083999,59517.0,59516.0,0.084]
[1724183872672,0.223999,59517.0,59516.0,0.084]
[1724183873468,0.223999,59517.0,59513.0,0.15029047]
[1724183873469,0.168006,59514.0,59513.0,0.15029047]
[1724183873773,0.168018,59510.0,59509.0,0.01677878]
[1724183873974,0.32852544,59510.0,59509.0,0.01677878]
[1724183874371,0.42492544,59510.0,59509.0,0.01677878]
[1724183874574,0.42492544,59510.0,59509.0,0.06677965]
[1724183874575,0.42512636,59510.0,59509.0,0.06677965]
[1724183874777,0.42612636,59510.0,59509.0,0.06677965]
[1724183875178,0.42612636,59510.0,59509.0,0.05000087]
[1724183875179,0.93024636,59510.0,59509.0,0.05000087]
[1724183875370,0.93024636,59510.0,59500.0,0.08335428]
[1724183875371,0.168044,59501.0,59500.0,0.05000185]
[1724183875572,0.168058,59496.0,59495.0,0.05001805]
[1724183875782,0.168058,59496.0,59489.0,0.05001805]
[1724183875783,0.53130976,59496.0,59489.0,0.05001805]
[1724183876084,0.084033,59493.0,59492.0,0.05001805]
[1724183876382,0.04779569,59500.0,59492.0,0.05001805]
[1724183876383,0.00019569,59500.0,59492.0,0.70101805]
[1724183876573,0.00019569,59500.0,59499.0,0.444824]
[1724183876773,0.00019569,59500.0,59495.0,0.084029]
[1724183877176,0.084024,59499.0,59498.0,0.04994601]
[1724183877377,0.244024,59499.0,59496.0,0.04994601]
[1724183877686,0.244024,59499.0,59497.0,0.04994601]
[1724183877984,0.244024,59499.0,59498.0,0.04994601]
[1724183878287,0.244024,59499.0,59498.0,0.04991774]
[1724183878477,0.5703,59499.0,59489.0,0.04992223]
[1724183878676,0.084039,59489.0,59488.0,0.04992223]
[1724183878879,0.25418331,59489.0,59487.0,0.084041]
[1724183879079,0.25385331,59489.0,59487.0,0.084041]
[1724183879282,0.08404,59488.0,59484.0,0.13396723]
[1724183879579,0.084044,59485.0,59484.0,0.04992223]
[1724183879885,0.224044,59485.0,59483.0,0.04992223]
[1724183880082,0.084046,59484.0,59483.0,0.04992223]
[1724183880276,0.084048,59482.0,59481.0,0.084049]
[1724183880478,0.084051,59480.0,59479.0,0.3608]
[1724183880677,0.084051,59480.0,59474.0,0.36100331]
[1724183880678,0.084058,59475.0,59474.0,0.00020331]
[1724183880884,0.00016556,59480.0,59474.0,0.00020331]
[1724183881080,0.00016556,59480.0,59478.0,0.084054]
[1724183881379,0.001,59485.0,59478.0,0.3608]
[1724183881584,0.001,59482.0,59481.0,0.08405]
[1724183882183,0.00105104,59482.0,59481.0,0.08405]
[1724183882580,0.001,59480.0,59478.0,0.3608]
[1724183882887,0.001,59480.0,59479.0,0.084053]
[1724183883192,5.104e-05,59482.0,59481.0,0.08405]
[1724183883791,5.104e-05,59482.0,59481.0,0.13391061]
[1724183883792,0.16005104,59482.0,59481.0,0.13391061]
[1724183884089,5.104e-05,59482.0,59481.0,1.03827061]
[1724183884391,0.444836,59491.0,59481.0,0.90436]
[1724183884586,0.24428914,59490.0,59486.0,0.084042]
[1724183884782,0.24428914,59490.0,59487.0,0.046]
[1724183884977,0.16025214,59490.0,59489.0,0.084039]
[1724183885184,0.00025214,59490.0,59489.0,0.444839]
[1724183885876,0.00125214,59490.0,59489.0,0.49469]
[1724183886285,0.00225214,59490.0,59489.0,0.444839]
[1724183886484,0.00225214,59490.0,59489.0,0.49469]
[1724183886687,0.00225214,59490.0,59489.0,0.444839]
[1724183886886,0.00125214,59490.0,59489.0,0.444839]
[1724183887088,0.00225214,59490.0,59489.0,0.446839]
[1724183887385,0.00225214,59490.0,59489.0,0.449839]
[1724183888583,0.00225214,59490.0,59489.0,0.49969]
[1724183888783,0.08402,59503.0,59490.0,0.084037]
[1724183888982,0.23402,59503.0,59502.0,0.08402]
[1724183889482,0.084022,59501.0,59498.0,0.084025]
[1724183889677,0.244022,59501.0,59499.0,0.084024]
[1724183890186,0.244022,59501.0,59496.0,0.3608]
[1724183890187,0.16,59501.0,59496.0,0.3608]
[1724183890487,0.651,59498.0,59494.0,0.00025214]
[1724183890685,0.16806,59495.0,59494.0,0.00025214]
[1724183890876,0.32806,59495.0,59494.0,0.00025214]
[1724183891083,0.16806,59495.0,59494.0,0.00025214]
[1724183891283,0.24403,59495.0,59494.0,0.00025214]
[1724183891690,0.24403,59495.0,59494.0,0.08428314]
[1724183892388,0.16,59495.0,59494.0,0.08428314]
[1724183892587,0.16,59495.0,59494.0,0.44508314]
[1724183892981,0.16,59495.0,59494.0,0.08428314]
[1724183893693,0.161,59495.0,59494.0,0.08728314]
[1724183893891,0.24503,59495.0,59494.0,0.08728314]
[1724183894486,0.24203,59495.0,59494.0,0.08728314]
[1724183895294,0.158,59495.0,59494.0,0.08728314]
[1724183896088,0.159,59495.0,59494.0,0.09028314]
[1724183896894,0.24303,59495.0,59494.0,0.09028314]
[1724183897595,0.159,59495.0,59494.0,0.09028314]
[1724183898382,0.24303,59495.0,59494.0,0.09028314]
[1724183901494,0.32706,59495.0,59494.0,0.00625214]
[1724183902596,0.32706,59495.0,59479.0,0.16740628]
[1724183902597,0.084048,59482.0,59481.0,0.05000264]
[1724183902798,0.084053,59479.0,59478.0,0.41080264]
[1724183902992,0.084053,59479.0,59478.0,0.3608]
[1724183902993,0.234053,59479.0,59478.0,0.3608]
[1724183903189,0.234053,59479.0,59478.0,0.41080264]
[1724183903398,0.15,59479.0,59478.0,0.49485664]
[1724183903794,0.15,59479.0,59478.0,0.444854]
[1724183904797,0.151,59479.0,59478.0,0.444854]
[1724183905099,0.00025214,59484.0,59483.0,0.084047]
[1724183905304,0.16025214,59484.0,59483.0,0.084047]
[1724183905600,0.00025214,59484.0,59483.0,0.084047]
[1724183905996,0.00025214,59484.0,59483.0,0.29547167]
[1724183906199,0.00025214,59484.0,59483.0,0.29547169]
[1724183906404,0.00025214,59484.0,59483.0,0.21211741]
[1724183907802,0.00025214,59484.0,59483.0,0.57291741]
[1724183908203,0.084038,59490.0,59483.0,1.47727741]
[1724183908403,0.13143,59495.0,59493.0,0.084032]
[1724183908404,0.084033,59494.0,59493.0,0.084032]
[1724183908599,0.254033,59494.0,59493.0,0.084032]
[1724183909301,0.17,59494.0,59493.0,0.084032]
[1724183909607,0.179,59494.0,59493.0,0.29544045]
[1724183910206,0.179,59494.0,59493.0,0.084032]
[1724183911008,0.172,59494.0,59493.0,0.084032]
[1724183911504,0.18,59494.0,59493.0,0.084032]
[1724183912508,0.171,59494.0,59493.0,0.084032]
[1724183914206,0.172,59494.0,59493.0,0.084032]
[1724183914597,0.171,59494.0,59493.0,0.084032]
[1724183914803,0.173,59494.0,59493.0,0.084032]
[1724183915205,0.172,59494.0,59493.0,0.168065]
[1724183915510,0.17,59494.0,59493.0,0.168065]
[1724183915711,0.171,59494.0,59493.0,0.168065]
[1724183916304,0.00025214,59499.0,59498.0,0.084026]
[1724183916605,0.084013,59507.0,59499.0,0.084024]
[1724183916800,0.084011,59509.0,59508.0,0.08401]
[1724183917004,0.254011,59509.0,59508.0,0.08401]
[1724183917200,0.084021,59502.0,59498.0,0.3608]
[1724183917408,0.130323,59501.0,59500.0,0.084023]
[1724183917608,0.346723,59501.0,59500.0,0.084023]
[1724183918811,0.347723,59501.0,59500.0,0.084023]
[1724183919110,0.3575964,59501.0,59500.0,0.084023]
[1724183919503,0.3625964,59501.0,59500.0,0.084023]
[1724183919703,0.38886915,59501.0,59500.0,0.084023]
[1724183919903,0.3625964,59501.0,59500.0,0.084023]
[1724183920113,0.38886915,59501.0,59500.0,0.084023]
[1724183920812,0.084029,59497.0,59496.0,0.084028]
[1724183921010,0.254029,59497.0,59496.0,0.084028]
[1724183922011,0.171,59497.0,59496.0,0.085028]
[1724183922209,0.171,59497.0,59496.0,0.16838914]
[1724183922514,0.0482,59503.0,59496.0,0.16838914]
[1724183922515,0.00025214,59506.0,59501.0,0.084021]
[1724183922815,0.16025214,59506.0,59505.0,0.13399053]
[1724183923715,0.16025214,59506.0,59504.0,0.04997453]
[1724183924312,0.16725214,59506.0,59504.0,0.04997453]
[1724183924618,0.084017,59504.0,59503.0,0.13399353]
[1724183924917,0.23452526,59504.0,59503.0,0.13399353]
[1724183925707,0.23452526,59504.0,59503.0,0.084019]
[1724183925913,0.157,59504.0,59503.0,0.084019]
[1724183926716,0.241017,59504.0,59503.0,0.084019]
[1724183928516,0.157,59504.0,59503.0,0.084019]
[1724183929212,0.12547803,59504.0,59503.0,0.084019]
[1724183931012,0.125478,59504.0,59503.0,0.084019]
[1724183931713,0.11497072,59504.0,59503.0,0.084019]
[1724183932023,0.12547801,59504.0,59503.0,0.084019]
[1724183933021,0.12547801,59504.0,59503.0,0.168038]
[1724183933209,0.11497072,59504.0,59503.0,0.168038]
[1724183933610,0.017,59504.0,59503.0,0.168038]
[1724183934710,0.101017,59504.0,59503.0,0.084019]
[1724183935017,0.28152469,59504.0,59503.0,0.084019]
[1724183935318,0.28152469,59504.0,59497.0,0.084026]
[1724183935319,0.084023,59501.0,59500.0,0.084022]
[1724183935525,0.26453069,59501.0,59500.0,0.084022]
[1724183935824,0.26453069,59501.0,59500.0,0.444822]
[1724183936015,0.26453069,59501.0,59500.0,0.084022]
[1724183936726,0.26365287,59501.0,59500.0,0.084022]
[1724183936934,0.27416149,59501.0,59500.0,0.084022]
[1724183937220,0.28016149,59501.0,59500.0,0.084022]
[1724183937525,0.26965287,59501.0,59500.0,0.084022]
[1724183937911,0.26365287,59501.0,59500.0,0.084022]
[1724183938116,0.27365287,59501.0,59500.0,0.084022]
[1724183938517,0.26965287,59501.0,59500.0,0.084022]
[1724183938716,0.27365287,59501.0,59500.0,0.084022]
[1724183940113,0.264023,59501.0,59500.0,0.084022]
[1724183940315,0.18,59501.0,59500.0,0.528845]
[1724183940521,0.08426714,59506.0,59505.0,0.084016]
[1724183940728,0.24426714,59506.0,59505.0,0.084016]
[1724183941428,0.24426714,59506.0,59505.0,0.444816]
[1724183941824,0.17025214,59506.0,59505.0,0.444816]
[1724183942124,0.01025214,59506.0,59505.0,0.528832]
[1724183942621,0.01677878,59510.0,59509.0,0.08401]
[1724183942829,0.17677878,59510.0,59509.0,0.08401]
[1724183943126,0.17677878,59510.0,59509.0,0.16802]
[1724183943924,0.19077878,59510.0,59509.0,0.16902]
[1724183944119,0.00025214,59515.0,59509.0,1.28515187]
[1724183944321,1e-08,59515.0,59514.0,0.819006]
[1724183944520,1e-08,59515.0,59514.0,1.43100365]
[1724183944726,0.0947,59531.0,59514.0,1.43100365]
[1724183944727,0.0492,59531.0,59530.0,0.083981]
[1724183944918,0.05970335,59531.0,59530.0,0.15057949]
[1724183945126,0.05970335,59531.0,59530.0,0.083981]
[1724183945333,0.0492,59531.0,59530.0,0.15050687]
[1724183945525,0.0454,59534.0,59533.0,0.083976]
[1724183945730,0.0454,59534.0,59529.0,0.3608]
[1724183945731,0.083971,59537.0,59535.0,0.083974]
[1724183945932,0.01050242,59536.0,59535.0,0.41068907]
[1724183946124,0.16050242,59536.0,59535.0,0.444774]
[1724183946324,0.15,59536.0,59535.0,0.083974]
[1724183947021,0.09387657,59537.0,59535.0,0.083974]
[1724183947227,0.24387657,59537.0,59535.0,0.444774]
[1724183947530,0.233971,59537.0,59535.0,0.083974]
[1724183947728,0.04945214,59539.0,59534.0,0.41068875]
[1724183947930,0.19911837,59539.0,59535.0,0.04988875]
[1724183948129,0.013,59536.0,59535.0,0.085974]
[1724183948522,0.013,59536.0,59535.0,0.084974]
[1724183948725,0.013,59536.0,59535.0,0.989894]
[1724183948927,0.01225214,59539.0,59538.0,0.083969]
[1724183949434,0.01225214,59539.0,59538.0,0.587849]
[1724183949642,0.01225214,59539.0,59538.0,0.083969]
[1724183949941,0.01225214,59539.0,59538.0,0.13369736]
[1724183950137,0.01225214,59539.0,59538.0,0.083969]
[1724183950533,0.00025214,59539.0,59538.0,0.083969]
[1724183950739,1e-08,59539.0,59538.0,0.63758039]
[1724183950930,1e-08,59539.0,59538.0,0.083969]
[1724183951337,0.00600001,59539.0,59538.0,0.084969]
[1724183953539,1e-08,59539.0,59538.0,0.083969]
[1724183953742,0.00600001,59539.0,59538.0,0.084969]
[1724183954336,1e-08,59539.0,59538.0,0.083969]
[1724183954542,0.00600001,59539.0,59538.0,0.084969]
[1724183954734,0.15600001,59539.0,59538.0,0.084969]
[1724183956239,0.00600001,59539.0,59538.0,0.084969]
[1724183956439,0.00600001,59539.0,59538.0,0.168938]
[1724183957035,0.00700001,59539.0,59538.0,0.168938]
[1724183957440,0.00100001,59539.0,59538.0,0.167938]
[1724183957634,0.00700001,59539.0,59538.0,0.168938]
[1724183959045,0.00700001,59539.0,59538.0,0.252907]
[1724183959247,0.131853,59550.0,59549.0,0.083954]
[1724183959444,0.291853,59550.0,59549.0,0.444754]
[1724183960237,0.083942,59558.0,59549.0,0.444754]
[1724183960238,0.00025191,59555.0,59554.0,0.083947]
[1724183960443,0.15025191,59555.0,59554.0,0.734947]
[1724183960841,0.23419691,59555.0,59554.0,0.444747]
[1724183961340,0.24819691,59555.0,59554.0,0.445747]
[1724183961943,0.16425191,59555.0,59554.0,0.445747]
[1724183962343,0.16425191,59555.0,59554.0,0.4953373]
[1724183962646,0.01425191,59555.0,59554.0,0.736947]
[1724183962843,0.00925191,59555.0,59554.0,0.820894]
[1724183963149,0.00925191,59555.0,59554.0,0.736947]
[1724183965038,0.00925191,59555.0,59554.0,0.88693969]
[1724183965236,0.0485,59562.0,59561.0,0.083937]
[1724183965439,0.2185,59562.0,59561.0,0.13345959]
[1724183966151,0.2185,59562.0,59561.0,0.083937]
[1724183966350,0.2265,59562.0,59561.0,0.1344776]
[1724183966941,0.23648251,59562.0,59561.0,0.084937]
[1724183968047,0.23648251,59562.0,59561.0,0.13448074]
[1724183968248,0.00016689,59567.0,59566.0,0.08393]
[1724183968549,0.00016689,59567.0,59566.0,0.81886]
[1724183968746,0.00016689,59567.0,59566.0,0.73493]
[1724183968946,0.00016689,59567.0,59566.0,0.44473]
[1724183969350,0.00950126,59571.0,59570.0,0.083924]
[1724183969544,0.08392,59574.0,59568.0,0.083927]
[1724183969750,0.23392,59574.0,59573.0,0.42687883]
[1724183969951,0.23392,59574.0,59573.0,0.3608]
[1724183970248,0.23392,59574.0,59573.0,0.42688174]
[1724183970449,0.23392,59574.0,59573.0,0.51080174]
[1724183970652,0.083923,59571.0,59570.0,0.06808174]
[1724183970854,0.337846,59571.0,59570.0,0.002]
[1724183971548,0.083936,59562.0,59561.0,0.06633365]
[1724183971852,0.083937,59561.0,59560.0,0.04962411]
[1724183972055,0.08394,59559.0,59546.0,0.08260448]
[1724183972251,0.3608,59551.0,59547.0,0.06618747]
[1724183972446,0.614751,59551.0,59550.0,0.04968503]
[1724183972642,1.098702,59551.0,59550.0,0.04968503]
[1724183972843,1.098702,59551.0,59540.0,0.444766]
[1724183972844,0.166916,59546.0,59545.0,0.04994718]
[1724183973149,0.166916,59546.0,59527.0,0.3608]
[1724183973150,0.083968,59539.0,59536.0,0.04970445]
[1724183973349,0.211968,59539.0,59528.0,0.083983]
[1724183973746,0.206968,59539.0,59528.0,0.083983]
[1724183974055,0.206968,59539.0,59533.0,0.00025191]
[1724183975155,0.6108,59541.0,59536.0,0.083972]
[1724183975156,0.3598,59541.0,59536.0,0.083972]
[1724183975462,0.3598,59541.0,59517.0,0.04977943]
[1724183975463,0.3598,59530.0,59517.0,0.04977943]
[1724183975651,0.2902,59516.0,59496.0,0.04977943]
[1724183975961,0.084022,59501.0,59494.0,0.3608]
[1724183976155,0.084024,59500.0,59494.0,0.3608]
[1724183976552,0.00019242,59499.0,59494.0,0.3608]
[1724183976762,0.00019242,59499.0,59496.0,0.013]
[1724183978047,0.3618,59516.0,59500.0,0.084022]
[1724183978247,0.3608,59516.0,59507.0,0.3608]
[1724183978552,0.444801,59516.0,59501.0,0.3608]
[1724183978750,0.444801,59516.0,59506.0,0.3608]
[1724183979856,0.084001,59516.0,59506.0,0.3608]
[1724183980047,0.3608,59515.0,59506.0,0.3608]
[1724183980648,0.3608,59515.0,59505.0,0.00025191]
[1724183980953,0.444802,59515.0,59505.0,0.00025191]
[1724183981361,0.40277291,59515.0,59506.0,0.04977943]
[1724183981562,0.084004,59514.0,59506.0,0.05077943]
[1724183982263,0.084005,59513.0,59505.0,0.00225191]
[1724183982557,0.084006,59512.0,59505.0,0.00225191]
[1724183982757,0.084006,59512.0,59506.0,0.001]
[1724183983060,0.084008,59511.0,59506.0,0.001]
[1724183983358,0.084008,59511.0,59505.0,0.00225191]
[1724183983561,0.084008,59511.0,59507.0,3.77]
[1724183984060,0.084002,59515.0,59510.0,0.084009]
[1724183984256,0.084002,59515.0,59510.0,0.49676881]
[1724183985256,0.084002,59515.0,59510.0,0.447209]
[1724183985562,0.00025191,59517.0,59510.0,0.447209]
[1724183986057,0.084009,59510.0,59509.0,0.3608]
[1724183986255,0.15,59510.0,59507.0,3.77224]
[1724183986457,0.15,59510.0,59507.0,3.77]
[1724183986655,0.084012,59508.0,59507.0,3.77]
[1724183986860,0.234012,59508.0,59507.0,3.77]
[1724183987259,0.15,59508.0,59507.0,3.77]
[1724183987459,0.084007,59512.0,59507.0,3.77]
[1724183987659,0.084008,59511.0,59509.0,0.44481]
[1724183988257,0.084008,59511.0,59510.0,0.084009]
[1724183988457,0.444786,59526.0,59512.0,0.084006]
[1724183988653,0.084002,59515.0,59513.0,0.084003]
[1724183988861,0.084002,59515.0,59509.0,0.3608]
[1724183988862,0.17,59515.0,59514.0,0.084003]
[1724183989057,0.00025191,59517.0,59516.0,0.084]
[1724183989257,0.084008,59511.0,59509.0,0.3608]
[1724183989477,0.084004,59514.0,59511.0,0.084007]
[1724183989759,0.15,59514.0,59511.0,0.084007]
[1724183991163,0.15,59514.0,59513.0,0.084005]
[1724183991362,0.3608,59516.0,59515.0,0.084002]
[1724183991557,0.5108,59516.0,59515.0,0.084002]
[1724183992468,0.5948,59516.0,59515.0,0.084002]
[1724183992858,0.5978,59516.0,59515.0,0.084002]
[1724183993460,0.5948,59516.0,59515.0,0.084002]
[1724183993667,0.5968,59516.0,59515.0,0.084002]
[1724183994063,0.5978,59516.0,59515.0,0.084002]
[1724183994557,0.5968,59516.0,59515.0,0.084002]
[1724183994759,0.5998,59516.0,59515.0,0.084002]
[1724183995669,0.5968,59516.0,59515.0,0.084002]
[1724183995859,0.157,59516.0,59515.0,0.084002]
[1724183996055,0.083979,59532.0,59526.0,0.083985]
[1724183996256,0.083979,59532.0,59525.0,0.083987]
[1724183996257,0.14,59532.0,59525.0,0.083987]
[1724183996562,0.083985,59527.0,59526.0,0.083985]
[1724183996770,0.223985,59527.0,59526.0,0.083985]
[1724183996958,0.223985,59527.0,59526.0,0.444785]
[1724183997159,0.14,59527.0,59526.0,4.214785]
[1724183997363,0.00025191,59532.0,59526.0,4.1308]
[1724183997560,0.00025191,59532.0,59527.0,0.083985]
[1724183997561,0.17025191,59532.0,59527.0,0.083985]
[1724183997756,0.17025191,59532.0,59528.0,0.083981]
[1724183997964,0.083982,59529.0,59528.0,0.083981]
[1724183998262,0.243982,59529.0,59528.0,0.083981]
[1724183998470,0.08422991,59532.0,59531.0,0.083979]
[1724183998665,0.09422991,59532.0,59531.0,0.083979]
[1724183998871,0.01025191,59532.0,59531.0,0.083979]
[1724183999167,0.00025191,59532.0,59531.0,0.083979]
[1724183999467,0.00025191,59532.0,59531.0,0.444779]
[1724184000060,0.00764755,59549.0,59531.0,1.62892]
[1724184000259,0.00764755,59549.0,59544.0,0.13361906]
[1724184000260,0.15,59549.0,59544.0,0.13361906]
[1724184000460,0.083957,59547.0,59545.0,3.77]
[1724184000666,0.083957,59547.0,59545.0,3.81965906]
[1724184000864,0.083957,59547.0,59545.0,3.77]
[1724184001072,0.08395,59552.0,59546.0,0.083958]
[1724184001262,0.16,59552.0,59549.0,0.04965906]
[1724184001463,0.16,59552.0,59550.0,0.04965906]
[1724184001968,0.16,59552.0,59550.0,0.04715906]
[1724184002165,0.16,59552.0,59548.0,0.083954]
[1724184002564,0.50376,59551.0,59545.0,0.06637257]
[1724184002757,0.50376,59551.0,59542.0,0.0022]
[1724184002758,0.083962,59543.0,59542.0,0.0022]
[1724184003063,0.16793,59541.0,59540.0,0.00025191]
[1724184003365,0.083979,59531.0,59528.0,0.06637257]
[1724184003572,0.083982,59529.0,59528.0,0.06637257]
[1724184003871,0.083982,59529.0,59523.0,0.06637257]
[1724184003872,0.5208,59529.0,59523.0,0.06637257]